Cogmind - Beta 17 @@@ ROGUE MODE // 2026.07.21 @ 11:42:27 Player: Akl Result: Smashed by cave-in Performance ------------- Evolutions (0) 0 Regions Visited (3) 600 Robots Destroyed (17) 85 Value Destroyed (279) 279 Prototype IDs (1) 20 Alien Tech Used (0) 0 Bonus (-63) -63 TOTAL SCORE: 921 Bonus ------- Friendly Fire -63 Cogmind --------- Core Integrity 0/250 Matter 205/300 Energy 99/100 System Corruption 6% Temperature Cool (0) Movement Core (250) Ox4 Location -10/Subcaves Parts ------- > --- POWER (1) -------- (None) > --- PROPULSION (2) --- (None) > --- UTILITY (2) ------ Small Storage Unit Thief Drone Bay (3/3) > --- WEAPON (2) ------- Medium Laser Subdweller Laser > --- INVENTORY (8) ---- Light Ion Engine Heat Sink Improved Heat Sink Improved Terrain Scanner Seismic Detector Rocket Launcher Mining Claw Peak State ------------ > --- POWER ------------ Light Ion Engine > --- PROPULSION ------- Aluminum Leg Aluminum Leg > --- UTILITY ---------- Small Storage Unit Thief Drone Bay > --- WEAPON ----------- Small Laser Rocket Launcher > --- INVENTORY -------- Light Ion Engine Heat Sink Improved Heat Sink Improved Terrain Scanner Seismic Detector Medium Laser Welding Torch Mining Claw [Rating: 15] Favorites ----------- Power Light Ion Engine Engine Light Ion Engine Propulsion Aluminum Leg Leg Aluminum Leg Utility Small Storage Unit Device Thief Drone Bay Storage Small Storage Unit Weapon Small Laser Energy Gun Small Laser Launcher Rocket Launcher Special Weapon Welding Torch Build | -11 -10 -10 -10 ------- Run | Yrd Mat Min Sub Slots Evolved . | . . . . Power . | . . . . Propulsion . | . . . . Utility . | . . . . Weapon . | . . . . Parts Attached 15 | 6 3 3 3 Power 2 | . 1 . 1 Engine 2 | . 1 . 1 Core . | . . . . Reactor . | . . . . Propulsion 2 | 2 . . . Treads . | . . . . Leg 2 | 2 . . . Wheel . | . . . . Hover . | . . . . Flight . | . . . . Utility 4 | 2 1 1 . Device 3 | 2 . 1 . Storage 1 | . 1 . . Processor . | . . . . Hackware . | . . . . Protection . | . . . . Artifact . | . . . . Weapon 7 | 2 1 2 2 Energy Gun 5 | 2 . 1 2 Energy Cannon . | . . . . Ballistic Gun . | . . . . Ballistic Cannon . | . . . . Launcher 1 | . . 1 . Special Weapon 1 | . 1 . . Impact Weapon . | . . . . Slashing Weapon . | . . . . Piercing Weapon . | . . . . Special Melee Weapon . | . . . . Unidentified Prototypes 1 | . . 1 . Parts Lost 6 | . . . 6 Power 2 | . . . 2 Propulsion 2 | . . . 2 Utility . | . . . . Weapon 2 | . . . 2 Highest Loss Streak 5 | . . . 5 To Critical Strikes . | . . . . Average Backups 6 | 3 4 7 7 Power 1 | 1 1 1 1 Propulsion . | . . . . Utility 3 | . 1 2 4 Weapon 1 | . 1 2 2 Tool/Special . | . . . . Unused Backups 4 | . . . 4 Power 1 | . . . 1 Propulsion . | . . . . Utility 2 | . . . 2 Weapon 1 | . . . 1 Tool/Special . | . . . . Average Slot Usage (%) 98 | . 94 100 98 Engine 13 | . 8 14 13 Leg 27 | . 28 28 27 Device 14 | . 19 14 14 Storage 13 | . 8 14 14 Energy Gun 17 | . 23 20 14 Launcher 8 | . . 7 11 Special Weapon 1 | . 4 . 2 Peak Build Rating 15 | 8 9 15 15 Average Rating 12 | 3 8 12 14 On Entrance 8 | . 8 9 15 Avg Prop Armor Cover (%) 23 | 23 23 . . Naked Turns . | . . . . Heaviest Build 17 | 4 11 17 17 Greatest Support 20 | 20 20 20 20 Greatest Overweight (x) 1 | 1 1 . 1 Average Overweight (x) . | . . . . Largest Inventory Capacity 8 | 5 8 8 8 Average Capacity 7 | 5 7 8 8 Most Carried 8 | 5 5 8 8 Average Carried 7 | 3 4 7 7 Final Capacity 8 | 5 8 8 8 Final Carried 8 | 4 5 8 7 Class Distribution -------------------- 100% | Mutant Dominant Class ---------------- Mutant | -10/Materials Mutant | -10/Mines Mutant | -10/Subcaves Resources | -11 -10 -10 -10 ----------- Run | Yrd Mat Min Sub Matter Collected 355 | 250 . 74 31 Remotely . | . . . . Salvage Created 278 | 79 . 88 111 Parts 29 | 7 . 7 15 Haulers Intercepted . | . . . . Recyclers Shooed . | . . . . Parts Field Recycled . | . . . . Retrieved Matter . | . . . . Parts Self-Destructed 14 | . . . 14 Prevented . | . . . . Parts Restored . | . . . . Kills | -11 -10 -10 -10 ------- Run | Yrd Mat Min Sub Combat Hostiles Destroyed 14 | . . 5 9 Guns 3 | . . 2 1 AOE 11 | . . 3 8 Classes Destroyed 7 | 2 . 2 3 Tunneler 1 | 1 . . . Recycler 1 | 1 . . . Swarmer 10 | . . 3 7 Grunt 2 | . . 2 . Sentry 1 | . . . 1 Subdweller 1 | . . . 1 Zionite 1 | . . . 1 Best Kill Streak 4 | 2 . 3 4 Combat Bots Only 4 | . . 3 4 Max Kills in Single Turn 3 | 1 . 3 2 Gunslinging . | . . . . Exploded 3 | . . 3 2 Melee . | . . . . Uniques/NPCs Destroyed . | . . . . Combat | -11 -10 -10 -10 -------- Run | Yrd Mat Min Sub Hostile Shots Fired 70 | . . 20 50 Missed 20 | . . 5 15 Hits 50 | . . 15 35 Projectile 50 | . . 15 35 Critical Strikes 1 | . . . 1 Damage Taken 1093 | . 24 212 857 Core 285 | . 12 46 227 Absorbed by Shields . | . . . . Core Remaining (%) 100 | 100 . . . Volleys Fired 37 | 7 2 10 18 Largest 2 | 2 2 2 2 Hottest 110 | 80 80 80 110 Shots Fired 56 | 14 3 18 21 Gun 45 | 14 3 16 12 Cannon . | . . . . Launcher 10 | . . 2 8 Special 1 | . . . 1 Kinetic . | . . . . Thermal 46 | 14 3 16 13 Explosive 10 | . . 2 8 Electromagnetic . | . . . . Robot Hit Streak 11 | 4 . 6 11 Robot Miss Streak 7 | 4 7 2 6 Penetration Max . | . . . . Secondary Targets . | . . . . Shots Hit Robots 31 | 7 . 12 12 Core Hits 22 | 3 . 8 11 Critical Kills . | . . . . Critical Parts Destroyed . | . . . . Critical Strikes . | . . . . Melee Attacks . | . . . . Impact . | . . . . Slashing . | . . . . Piercing . | . . . . Sneak Attacks . | . . . . Combat Hostiles . | . . . . Follow-up Attacks . | . . . . Damage Inflicted 1063 | 85 . 276 702 Guns 350 | 85 . 132 133 Cannons . | . . . . Explosions 707 | . . 142 565 Melee . | . . . . Ramming 2 | . . 2 . Kinetic . | . . . . Thermal 354 | 85 . 132 137 Explosive 707 | . . 142 565 Electromagnetic . | . . . . Impact . | . . . . Slashing . | . . . . Piercing . | . . . . Highest Corruption . | . . . . Average Corruption . | . . . . Corruption Purged . | . . . . Corruption Blocked . | . . . . Overload Shots . | . . . . Overflow Damage 31 | . . . 31 Projectiles . | . . . . Explosions 31 | . . . 31 Melee . | . . . . Knockbacks . | . . . . Impact . | . . . . Kinetic . | . . . . Secondary . | . . . . Self-Inflicted Damage 74 | . . 50 24 Shots 4 | . . 2 2 Rammed . | . . . . Targets Rammed 1 | . . 1 . Kicked 1 | . . 1 . Crushed . | . . . . Highest Temperature 105 | 9 18 105 . Average Temperature 29 | 3 12 46 . Received Heat Transfer 234 | . . 84 150 Siege Activations . | . . . . Martial Activations . | . . . . Shielding Activations . | . . . . Robots Disrupted . | . . . . Combat Hostiles . | . . . . Robots Corrupted . | . . . . Combat Hostiles . | . . . . Parts Fried . | . . . . Impact Corruptions . | . . . . Robots Melted . | . . . . Combat Hostiles . | . . . . Parts Melted . | . . . . Heat Transferred 883 | 200 . 300 383 Parts Sabotaged . | . . . . Parts Stolen . | . . . . Parts Stripped . | . . . . Power Chain Reactions . | . . . . Alert | -11 -10 -10 -10 ------- Run | Yrd Mat Min Sub Maximum Alert Level . | . . . . Low Security (%) 100 | 100 100 100 . Level 1 . | . . . . Level 2 . | . . . . Level 3 . | . . . . Level 4 . | . . . . Level 5 . | . . . . High Security . | . . . . Max Security . | . . . . Peak Influence 87 | 5 . 87 . Initial . | . . . . Average 22 | 1 . 37 . Influence Increases 347 | 10 . 137 200 Destroy 0b10 Robot/C 260 | . . 100 160 Destroy 0b10 Robot/NC 10 | 10 . . . Destroy Leader 30 | . . 20 10 Destroy Structure 17 | . . 17 . Lose Combat Pursuer 30 | . . . 30 Influence Decreases 347 | 10 . 120 217 Entered New Map 9 | . . . 9 Time Decay 300 | 10 . 120 170 Lost Part 38 | . . . 38 Squads Dispatched . | . . . . Investigation . | . . . . Extermination . | . . . . Reinforcement . | . . . . Assault . | . . . . Garrison . | . . . . Intercept . | . . . . Searches Triggered . | . . . . Construction Impeded . | . . . . Haulers Reinforced . | . . . . Active Scanning Responses . | . . . . Cargo Convoy Interrupts . | . . . . Stealth | -11 -10 -10 -10 --------- Run | Yrd Mat Min Sub Distress Signals . | . . . . Communications Jammed . | . . . . Distress Signals . | . . . . Times Spotted 17 | . 2 5 10 Peak Tracking Total 4 | . 2 3 4 Tactical Retreats 2 | . . . 2 Traps | -11 -10 -10 -10 ------- Run | Yrd Mat Min Sub Traps Triggered 1 | . 1 . . Indirectly . | . . . . Trap Hack Attempts . | . . . . Triggered . | . . . . Disarmed . | . . . . Reprogrammed . | . . . . Reused . | . . . . Traps Extracted . | . . . . Installed . | . . . . Triggered . | . . . . Machines | -11 -10 -10 -10 ---------- Run | Yrd Mat Min Sub Machines Disabled . | . . . . Max in Single Turn . | . . . . Machines Repaired . | . . . . Machines Dismantled . | . . . . Machines Sabotaged . | . . . . Overloaded Fab Kills . | . . . . Hacking | -11 -10 -10 -10 --------- Run | Yrd Mat Min Sub Machines Accessed 2 | . 1 1 . Terminals 1 | . 1 . . Fabricators . | . . . . Repair Stations . | . . . . Recycling Units . | . . . . Scanalyzers . | . . . . Garrison Access . | . . . . Total Hacks 4 | . 3 1 . Successful 1 | . . 1 . Failed 3 | . 3 . . Catastrophic . | . . . . Database Lockouts . | . . . . Manual . | . . . . Terminals 3 | . 3 . . Fabricators . | . . . . Repair Stations . | . . . . Recycling Units . | . . . . Scanalyzers . | . . . . Garrison Access . | . . . . Terminal Hacks 1 | . . 1 . Open Door 1 | . . 1 . Fabricator Hacks . | . . . . Repair Station Hacks . | . . . . Recycling Unit Hacks . | . . . . Scanalyzer . | . . . . Garrison Access Hacks . | . . . . Unauthorized Hacks . | . . . . Terminals . | . . . . Fabricators . | . . . . Repair Stations . | . . . . Recycling Units . | . . . . Scanalyzers . | . . . . Garrison Access . | . . . . Data Cores Recovered . | . . . . Used . | . . . . Hacking Detections 1 | . 1 . . Full Trace Events 1 | . 1 . . Feedback Events . | . . . . Feedback Blocked . | . . . . Robot Schematics Acquired . | . . . . Robots Built . | . . . . Authchips . | . . . . Time . | . . . . Total Robot Build Rating . | . . . . Part Schematics Acquired . | . . . . Parts Built . | . . . . Authchips . | . . . . Time . | . . . . Total Part Build Rating . | . . . . Part Studies Acquired . | . . . . Parts Repaired . | . . . . Time . | . . . . Parts Recycled . | . . . . Recycled Matter . | . . . . Retrieved Matter . | . . . . Retrieved Components . | . . . . Parts Scanalyzed . | . . . . Part Schematics Acquired . | . . . . Parts Damaged . | . . . . Bothacking | -11 -10 -10 -10 ------------ Run | Yrd Mat Min Sub Used RIF Installer . | . . . . Robots Hacked . | . . . . Non-combat . | . . . . Combat . | . . . . Robot Hacks Applied . | . . . . Relay Couplers Released . | . . . . Fabnet Peak Effective % . | . . . . Robots Rewired . | . . . . Allies Hacked . | . . . . Hacks Repelled . | . . . . Allies | -11 -10 -10 -10 -------- Run | Yrd Mat Min Sub Total Allies . | . . . . Largest Group . | . . . . Highest-Rated Group . | . . . . Highest-Rated Ally . | . . . . Total Orders 16 | . . 5 11 ROAM 2 | . . 1 1 EXPLORE 5 | . . . 5 RETURN 9 | . . 4 5 Ally Attacks 2 | . . . 2 Total Damage 18 | . . . 18 Kills . | . . . . Allies Corrupted . | . . . . Allies Melted . | . . . . Intel | -11 -10 -10 -10 ------- Run | Yrd Mat Min Sub Active Infowar (turns) 240 | 5 93 142 . Terrain 240 | 5 93 142 . Seismic 31 | 1 30 . . Robot Analysis Total . | . . . . Derelict Logs Recovered 1 | . . . 1 Drone Launches 9 | . . 4 5 Drone Recoveries 9 | . . 4 5 Exploration | -11 -10 -10 -10 ------------- Run | Yrd Mat Min Sub Turns Passed 925 | 74 93 252 506 Spaces Moved 602 | 66 74 138 324 Core 91 | 61 30 . . Treads . | . . . . Legs 511 | 5 44 138 324 Wheels . | . . . . Hover . | . . . . Flight . | . . . . Fastest Speed 50 | 50 50 120 120 Average Speed 112 | 56 109 120 120 Slowest Speed 190 | 120 120 120 190 Overloaded Moves . | . . . . Propulsion Burnouts . | . . . . Robots Hopped . | . . . . Potential Cave-ins . | . . . . Cave-ins Triggered 1 | . . . 1 Exploration Rate (%) 32 | 3 27 66 32 Regions Visited 3 Branch Regions 2 Pre-discovered Areas 1 | . . . 1 Known Exits Taken . | . . . . Unknown Exits Taken 3 | 1 1 1 . Scrap Searched 1 | . . 1 . Spaces Dug . | . . . . Terrain Destroyed 72 | . . 24 48 Melee . | . . . . Projectile . | . . . . AOE 72 | . . 24 48 Terrain Rammed . | . . . . Walls Destroyed . | . . . . Machines Disabled . | . . . . Actions | -11 -10 -10 -10 --------- Run | Yrd Mat Min Sub Total 793 | 88 83 205 417 Wait 117 | . . 47 70 Move 599 | 65 73 137 324 Hop . | . . . . Pick Up 18 | 10 2 5 1 Fast Attach 2 | . 1 . 1 Attach 10 | 6 2 . 2 Detach 1 | . 1 . . Swap 5 | . 1 3 1 Drop 3 | . 1 2 . Fire 37 | 7 2 10 18 Melee . | . . . . Ram . | . . . . Kick 1 | . . 1 . Crush . | . . . . Escape Stasis . | . . . . Rewire . | . . . . Trap . | . . . . Miscellaneous . | . . . . Route ------- -11/Scrapyard -10/Materials -10/Mines -10/Subcaves (discovered 1 exit: [*Rec]) History --------- Turn | Location | Event 4 | -11/Scrapyard | Discovered new exit (range 16) 75 | -11/Scrapyard | Entered Materials 160 | -10/Materials | Discovered new exit (range 8) 168 | -10/Materials | Entered Mines 201 | -10/Mines | Assembled infested the area 260 | -10/Mines | Received a Rocket Launcher from a helpful Derelict 301 | -10/Mines | Found the Drone Emporium 309 | -10/Mines | Found Prototype Device 310 | -10/Mines | Identified Thief Drone Bay 331 | -10/Mines | Build established: Mutant 403 | -10/Mines | Discovered new exit (range 8) 420 | -10/Mines | Entered Subcaves 538 | -10/Subcaves | Learned location of Zion (-7) 538 | -10/Subcaves | Met a Zionite searching for "candidates" 572 | -10/Subcaves | Discovered new exit (range 34) 927 | -10/Subcaves | Crushed by falling debris 927 | -10/Subcaves | Smashed by cave-in Last Messages --------------- 00634_ Thief Drone retrieved by Thief Drone Bay (repair cost: 9). 00816_ The unstable cave ceiling collapses. 00819_ Sml. Laser destroyed. 00819_ V8-GO8(R) suffers critical hit (Burn). 00872_ The unstable cave ceiling collapses. 00877_ Critical hit (Burn: +37). 00880_ Acquired Sub. Laser. 00881_ Acquired 26 matter. 00897_ Aluminum Leg destroyed. 00903_ Welding Torch destroyed. 00918_ Lgt. Ion Engine destroyed. 00920_ Y-45 Defender destroyed. 00925_ Acquired Imp. Ion Engine. 00927_ The unstable cave ceiling collapses. 00927_ Crushed by falling debris. 00927_ Imp. Ion Engine destroyed. 00927_ System corrupted by crushing effect (+1). 00927_ Aluminum Leg destroyed. 00927_ System corrupted by crushing effect (+5). Map ----- +----------------------------------------------------+ | ?????????????????????????????????????????????????? | | ?????????????????????????????????????????????????? | | ?????????????????????????????????????????????????? | | ?????????????????????????????????????????????????? | | ?????????????????????????????????????????????????? | | ?????????????????????????????????????????????????? | | ?????????????????????????????????????????????????? | | ?????????????????????????????????????????????????? | | ?????????????????????????????????????????????????? | | ?????????????????????????????????????????????????? | | ?????????????????????????????????????????????????? | | ?????????????????????????????????????????????????? | | ?????????????????????????????????????????????????? | | ?????????????????????????????????????????????????? | | ?????????????????????????????????????????????????? | | ?????????????????????????????????????????????????? | | ????????????????????????????????????????# ???????? | | ??????????????????????????????????????? ???????? | | ?????????????????????????????????##??? ???????? | | ??????????????????????????###?### #??# ??????? | | ?????????????????????????## ### ### ???????? | | ?????????????????????????# # # ???????? | | ?????????????????????????# = ??????? | | ?????????????????????????#!= %! #?????????? | | ???????????????????????### & #?????????????? | | ???????????????????????# @ ! ####?????????????? | | ?????????????????? ## # % ###??????????????? | | ??????????????? ! #??????????????? | | ????????????? ##?????????????? | | ??????????????# ## ##????????????? | | ??????????????## ####### ##???????????? | | ???????????????# ??#### ## #???????????? | | ???????????????# ???# ### #???????????? | | ???????????????# ????## ### #???????????? | | ??????????????# ?????# ### #???????????? | | ?????????????? ??????# ###?# #???????????? | | ?????????????? ???????##????## #???????????? | | ???????????????? ???????????????## #???????????? | | ????????????????????????????????## ##???????????? | | ????????????????????????????????# #???????????? | | ????????????????????####????????# #???????????? | | ????????????????????# #????????## ##???????????? | | ???????????????????## ##???????# #???????????? | | ??????????????????## #???????## #???????????? | | ?????????????###### ###??????## ##??????????? | | ?????????????# ######### ##?????????? | | ????????????## ## #?????????? | | ???????????## ##?????????? | | ???????????# ## ###??????????? | | ??????????# ### ## #?????###???## | +----------------------------------------------------+ Best States ------------- Heat Dissipation 25 Energy Generation 10 Energy Capacity 125 Matter Stores 300 Matter Capacity 300 Sight Range 16 Terrain Scan Range 16 Terrain Scan Density 10 Evasion (%) 55 Item Schematics ----------------- None Robot Schematics ------------------ None Fabricated ------------ Nothing Repaired ---------- Nothing Studied --------- None Alien Tech Used ----------------- None Achievements -------------- None Challenges ------------ None Game ------ Seed BlastTeslaTerrabomb Manual? 0 Play Time 00:13:56 Cumulative 25.4 hours Start 2026.07.21 @ 11:24:53 End 2026.07.21 @ 11:42:27 Sessions 1 Manual Loads 0 Difficulty Rogue Special Mode None Game No. 45 Rogue 45 Adventurer 0 Explorer 0 Win Type - Total 0 Types 0/0/0/0/0/0/0/0/0/0 Lore% 15 Gallery% 22 Achievement% 17 Wizard Run 0 Options --------- Layout 1 ASCII 0 Keyboard 0 Movement Mouse Keybinds 0 Fullscreen 1 Font 24/Smallcaps Map View 50x35 Zoom Use 0% Tactical HUD 1 Map Filters NONE Filters NONE Steam 1 RUN: e1973852-7c37-47bd-9f98-5e319cf0d29d